[Event "RUS-ch Blitz Women 2018"]
[Site "Sochi"]
[Date "2018.10.07"]
[Round "4"]
[White "Maletina, Tatiana"]
[Black "Lysenko, Margarita"]
[Result "1-0"]
[ECO "A50"]
[WhiteElo "2270"]
[BlackElo "2210"]
[Annotator "NA"]
[PlyCount "85"]
[EventDate "2018.10.07"]
[EventType "swiss"]
[EventCountry "RUS"]
[SourceTitle "playchess.com"]
[Source "ChessBase"]
[SourceQuality "1"]
[TimeControl "180+2"]

1. d4 {[%emt 0:00:00]} Nf6 {[%emt 0:00:00]} 2. c4 {[%emt 0:00:04]} g6 {[%emt 0:00:00]} 3. f3 {[%emt 0:00:01]} c5 {[%emt 0:00:24]} 4. d5 {[%emt 0:00:01]} Bg7 {[%emt 0:00:02]} 5. e4 {[%emt 0:00:01]} d6 {[%emt 0:00:06]} 6. Nc3 {[%emt 0:00:01]} O-O {[%emt 0:00:04]} 7. Be3 {[%emt 0:00:01]} e6 {[%emt 0:00:04]} 8. Qd2 {[%emt 0:00:03]} exd5 {[%emt 0:00:05]} 9. cxd5 {[%emt 0:00:02]} a6 {[%emt 0:00:02]} 10. a4 {[%emt 0:00:01]} Re8 {[%emt 0:00:07]} 11. Nge2 {[%emt 0:00:01]} Nbd7 {[%emt 0:00:05]} 12. Ng3 {[%emt 0:00:01]} Ne5 {[%emt 0:00:03]} 13. Be2 {[%emt 0:00:02]} h5 {[%emt 0:00:06]} 14. O-O {[%emt 0:00:01]} Bd7 {[%emt 0:00:23]} 15. h3 {[%emt 0:00:02]} c4 {[%emt 0:00:27]} 16. f4 {[%emt 0:00:09]} Nd3 {[%emt 0:00:01]} 17. Bxd3 {[%emt 0:00:01]} cxd3 {[%emt 0:00:01]} 18. Qxd3 {[%emt 0:00:01]} b5 {[%emt 0:00:24]} 19. Bd4 {[%emt 0:00:28]} bxa4 {[%emt 0:00:17]} 20. e5 {[%emt 0:00:04]} Nh7 {[%emt 0:00:07]} 21. exd6 {[%emt 0:00:48]} Rb8 {[%emt 0:00:11]} 22. Rf2 {[%emt 0:00:19]} Bxd4 {[%emt 0:00:09]} 23. Qxd4 {[%emt 0:00:01]} Qb6 {[%emt 0:00:01]} 24. Qxb6 {[%emt 0:00:11]} Rxb6 {[%emt 0:00:02]} 25. Nge4 {[%emt 0:00:02]} f5 {[%emt 0:00:05]} 26. Nc5 {[%emt 0:00:03]} Rxd6 {[%emt 0:00:02]} 27. N5xa4 {[%emt 0:00:09]} Nf6 {[%emt 0:00:22]} 28. Nc5 {[%emt 0:00:13]} Rb8 {[%emt 0:00:07]} 29. Rxa6 {[%emt 0:00:07]} Rxa6 {[%emt 0:00:05]} 30. Nxa6 {[%emt 0:00:01]} Rc8 {[%emt 0:00:03]} 31. Nb4 {[%emt 0:00:04]} Rc4 {[%emt 0:00:02]} 32. Nd3 {[%emt 0:00:03]} Rd4 {[%emt 0:00:04]} 33. Ne5 {[%emt 0:00:02]} Be8 {[%emt 0:00:01]} 34. Nf3 {[%emt 0:00:13]} Rb4 {[%emt 0:00:02]} 35. d6 {[%emt 0:00:03]} Rb8 {[%emt 0:00:03]} 36. Ne5 {[%emt 0:00:01]} Rd8 {[%emt 0:00:02]} 37. Rd2 {[%emt 0:00:01]} Bd7 {[%emt 0:00:02]} 38. b4 {[%emt 0:00:04]} Be8 {[%emt 0:00:02]} 39. b5 {[%emt 0:00:01]} Rb8 {[%emt 0:00:01]} 40. d7 {[%emt 0:00:02]} Bxd7 {[%emt 0:00:02]} 41. Nxd7 {[%emt 0:00:01]} Nxd7 {[%emt 0:00:02]} 42. Rxd7 {[%emt 0:00:01]} Rc8 {[%emt 0:00:01]} 43. b6 {[%emt 0:00:04]} 1-0

[Event "RUS-ch Blitz Women 2018"]
[Site "Sochi"]
[Date "2018.10.07"]
[Round "4"]
[White "Styazhkina, Anna"]
[Black "Bodnaruk, Anastasia"]
[Result "1-0"]
[ECO "B53"]
[WhiteElo "2268"]
[BlackElo "2423"]
[Annotator "NA"]
[PlyCount "177"]
[EventDate "2018.10.07"]
[EventType "swiss"]
[EventCountry "RUS"]
[SourceTitle "playchess.com"]
[Source "ChessBase"]
[SourceQuality "1"]
[TimeControl "180+2"]

1. e4 {[%emt 0:00:00]} c5 {[%emt 0:00:00]} 2. Nf3 {[%emt 0:00:01]} d6 {[%emt 0:00:00]} 3. d4 {[%emt 0:00:00]} cxd4 {[%emt 0:00:00]} 4. Qxd4 {[%emt 0:00:02]} Nf6 {[%emt 0:00:08]} 5. c4 {[%emt 0:00:04]} Nc6 {[%emt 0:00:02]} 6. Qe3 {[%emt 0:00:02]} g6 {[%emt 0:00:05]} 7. Be2 {[%emt 0:00:05]} Bg7 {[%emt 0:00:01]} 8. h3 {[%emt 0:00:06]} O-O {[%emt 0:00:07]} 9. O-O {[%emt 0:00:02]} Ne8 {[%emt 0:00:20]} 10. Rd1 {[%emt 0:00:08]} Qa5 {[%emt 0:00:09]} 11. Nc3 {[%emt 0:00:09]} Nc7 {[%emt 0:00:11]} 12. Nd5 {[%emt 0:00:24]} Nxd5 {[%emt 0:00:09]} 13. exd5 {[%emt 0:00:01]} Ne5 {[%emt 0:00:04]} 14. Nd4 {[%emt 0:00:20]} Qb6 {[%emt 0:00:03]} 15. b3 {[%emt 0:00:22]} e6 {[%emt 0:00:14]} 16. dxe6 {[%emt 0:00:11]} fxe6 {[%emt 0:00:05]} 17. Bb2 {[%emt 0:00:05]} Bd7 {[%emt 0:00:16]} 18. Rab1 {[%emt 0:00:37]} Rad8 {[%emt 0:00:05]} 19. Ba3 {[%emt 0:00:12]} Bc8 {[%emt 0:00:23]} 20. Nc2 {[%emt 0:00:11]} Qxe3 {[%emt 0:00:16]} 21. Nxe3 {[%emt 0:00:04]} Nf7 {[%emt 0:00:01]} 22. Rd3 {[%emt 0:00:23]} Bf6 {[%emt 0:00:23]} 23. Rbd1 {[%emt 0:00:02]} Be7 {[%emt 0:00:01]} 24. Nc2 {[%emt 0:00:06]} h5 {[%emt 0:00:04]} 25. Nd4 {[%emt 0:00:03]} Ne5 {[%emt 0:00:08]} 26. R3d2 {[%emt 0:00:05]} a6 {[%emt 0:00:03]} 27. g3 {[%emt 0:00:04]} Nf7 {[%emt 0:00:10]} 28. Nc2 {[%emt 0:00:02]} Ne5 {[%emt 0:00:06]} 29. f4 {[%emt 0:00:03]} Nf7 {[%emt 0:00:01]} 30. Ne3 {[%emt 0:00:01]} Rfe8 {[%emt 0:00:05]} 31. Kg2 {[%emt 0:00:01]} Bd7 {[%emt 0:00:02]} 32. Bf3 {[%emt 0:00:02]} Bc6 {[%emt 0:00:01]} 33. Re1 {[%emt 0:00:01]} Bf6 {[%emt 0:00:06]} 34. Nc2 {[%emt 0:00:02]} e5 {[%emt 0:00:02]} 35. fxe5 {[%emt 0:00:03]} Bxf3+ {[%emt 0:00:03]} 36. Kxf3 {[%emt 0:00:02]} Nxe5+ {[%emt 0:00:01]} 37. Kg2 {[%emt 0:00:02]} Nf7 {[%emt 0:00:03]} 38. Rxe8+ {[%emt 0:00:02]} Rxe8 {[%emt 0:00:00]} 39. Kf2 {[%emt 0:00:02]} Re6 {[%emt 0:00:03]} 40. Ne3 {[%emt 0:00:02]} Bg5 {[%emt 0:00:02]} 41. Re2 {[%emt 0:00:02]} Ne5 {[%emt 0:00:00]} 42. Nd5 {[%emt 0:00:03]} Nd3+ {[%emt 0:00:05]} 43. Kf1 {[%emt 0:00:01]} Kf7 {[%emt 0:00:08]} 44. Nc7 {[%emt 0:00:02]} Rf6+ {[%emt 0:00:04]} 45. Kg2 {[%emt 0:00:01]} Nc5 {[%emt 0:00:02]} 46. Nd5 {[%emt 0:00:02]} Re6 {[%emt 0:00:01]} 47. Rf2+ {[%emt 0:00:01]} Kg8 {[%emt 0:00:01]} 48. h4 {[%emt 0:00:02]} Bh6 {[%emt 0:00:02]} 49. Bxc5 {[%emt 0:00:03]} dxc5 {[%emt 0:00:01]} 50. Nf6+ {[%emt 0:00:03]} Kg7 {[%emt 0:00:02]} 51. Nd5 {[%emt 0:00:02]} Kg8 {[%emt 0:00:06]} 52. Nf6+ {[%emt 0:00:03]} Kg7 {[%emt 0:00:01]} 53. Nd5 {[%emt 0:00:01]} Kg8 {[%emt 0:00:00]} 54. Kh3 {[%emt 0:00:01]} Bg7 {[%emt 0:00:01]} 55. g4 {[%emt 0:00:02]} hxg4+ {[%emt 0:00:04]} 56. Kxg4 Bd4 57. Rg2 {[%emt 0:00:04]} Kh7 {[%emt 0:00:04]} 58. Kg5 {[%emt 0:00:05]} Re5+ {[%emt 0:00:03]} 59. Kg4 {[%emt 0:00:01]} Re1 {[%emt 0:00:00]} 60. h5 {[%emt 0:00:01]} gxh5+ {[%emt 0:00:05]} 61. Kxh5 {[%emt 0:00:02]} b5 {[%emt 0:00:02]} 62. Kg5 {[%emt 0:00:04]} bxc4 {[%emt 0:00:03]} 63. bxc4 {[%emt 0:00:01]} Rc1 {[%emt 0:00:00]} 64. Nb6 {[%emt 0:00:01]} Rb1 {[%emt 0:00:04]} 65. Nd5 {[%emt 0:00:02]} Rc1 {[%emt 0:00:01]} 66. Nb6 {[%emt 0:00:01]} Rf1 {[%emt 0:00:02]} 67. Re2 {[%emt 0:00:02]} Rf7 {[%emt 0:00:03]} 68. Nd5 Rb7 {[%emt 0:00:02]} 69. Re6 {[%emt 0:00:04]} a5 {[%emt 0:00:03]} 70. Ra6 {[%emt 0:00:02]} Rb2 {[%emt 0:00:02]} 71. Rxa5 {[%emt 0:00:01]} Rg2+ {[%emt 0:00:00]} 72. Kf5 {[%emt 0:00:02]} Kg7 {[%emt 0:00:04]} 73. Nc7 {[%emt 0:00:03]} Rf2+ {[%emt 0:00:01]} 74. Ke4 {[%emt 0:00:01]} Kh6 {[%emt 0:00:01]} 75. Ne6 {[%emt 0:00:03]} Re2+ {[%emt 0:00:01]} 76. Kd5 {[%emt 0:00:05]} Rd2 {[%emt 0:00:05]} 77. Kc6 {[%emt 0:00:02]} Rc2 {[%emt 0:00:02]} 78. Nxc5 {[%emt 0:00:02]} Rxc4 {[%emt 0:00:01]} 79. Kd5 {[%emt 0:00:01]} Rb4 {[%emt 0:00:02]} 80. Ne6 {[%emt 0:00:02]} Bf2 {[%emt 0:00:02]} 81. a3 {[%emt 0:00:01]} Rb1 {[%emt 0:00:01]} 82. Nf4 {[%emt 0:00:02]} Be3 {[%emt 0:00:04]} 83. Nd3 {[%emt 0:00:02]} Ra1 {[%emt 0:00:01]} 84. a4 {[%emt 0:00:01]} Kg5 {[%emt 0:00:01]} 85. Ra8 {[%emt 0:00:02]} Bd2 {[%emt 0:00:02]} 86. Nc5 {[%emt 0:00:02]} Kf4 {[%emt 0:00:02]} 87. Re8 {[%emt 0:00:02]} Bb4 {[%emt 0:00:02]} 88. Re4+ {[%emt 0:00:01]} Kf5 {[%emt 0:00:01]} 89. Rxb4 {[%emt 0:00:02]} 1-0

[Event "RUS-ch Blitz Women 2018"]
[Site "Sochi"]
[Date "2018.10.07"]
[Round "4"]
[White "Markelova, Lubov"]
[Black "Sukhareva, Evgeniya"]
[Result "1-0"]
[ECO "A05"]
[WhiteElo "2190"]
[BlackElo "2125"]
[Annotator "NA"]
[PlyCount "69"]
[EventDate "2018.10.07"]
[EventType "swiss"]
[EventCountry "RUS"]
[SourceTitle "playchess.com"]
[Source "ChessBase"]
[SourceQuality "1"]
[TimeControl "180+2"]

1. Nf3 {[%emt 0:00:00]} Nf6 {[%emt 0:00:00]} 2. c4 {[%emt 0:00:00]} g6 {[%emt 0:00:00]} 3. Nc3 {[%emt 0:00:00]} Bg7 {[%emt 0:00:01]} 4. e4 {[%emt 0:00:01]} c5 {[%emt 0:00:01]} 5. d4 {[%emt 0:00:02]} cxd4 {[%emt 0:00:02]} 6. Nxd4 {[%emt 0:00:01]} d6 {[%emt 0:00:02]} 7. Be2 {[%emt 0:00:01]} O-O {[%emt 0:00:02]} 8. Be3 {[%emt 0:00:01]} b6 {[%emt 0:00:02]} 9. O-O {[%emt 0:00:04]} Bb7 {[%emt 0:00:01]} 10. f3 {[%emt 0:00:01]} Nbd7 {[%emt 0:00:01]} 11. Qd2 {[%emt 0:00:04]} Rc8 {[%emt 0:00:01]} 12. Rac1 {[%emt 0:00:02]} a6 {[%emt 0:00:04]} 13. Rfd1 {[%emt 0:00:03]} Re8 {[%emt 0:00:04]} 14. Bf1 {[%emt 0:00:02]} Bf8 {[%emt 0:00:10]} 15. b4 {[%emt 0:00:10]} e6 {[%emt 0:00:02]} 16. Qf2 {[%emt 0:00:07]} Qc7 {[%emt 0:00:01]} 17. Nb3 {[%emt 0:00:06]} Be7 {[%emt 0:00:10]} 18. Na4 {[%emt 0:00:20]} Bd8 {[%emt 0:00:02]} 19. Kh1 {[%emt 0:00:04]} Ba8 {[%emt 0:00:09]} 20. c5 {[%emt 0:00:14]} dxc5 {[%emt 0:00:10]} 21. Bxa6 {[%emt 0:00:12]} Rb8 {[%emt 0:00:01]} 22. bxc5 {[%emt 0:00:07]} b5 {[%emt 0:00:15]} 23. Nb6 {[%emt 0:00:29]} Bc6 {[%emt 0:00:05]} 24. Na5 {[%emt 0:00:10]} Ra8 {[%emt 0:01:37]} 25. Nxc6 {[%emt 0:00:16]} Rxa6 {[%emt 0:00:33]} 26. Nxd8 {[%emt 0:00:03]} Rxd8 {[%emt 0:00:03]} 27. Qb2 {[%emt 0:00:14]} Ra5 {[%emt 0:00:06]} 28. Nxd7 {[%emt 0:00:14]} Nxd7 {[%emt 0:00:03]} 29. c6 {[%emt 0:00:17]} Nf8 {[%emt 0:00:06]} 30. Rxd8 {[%emt 0:00:05]} Qxd8 {[%emt 0:00:01]} 31. c7 {[%emt 0:00:01]} Qc8 {[%emt 0:00:00]} 32. Bh6 {[%emt 0:00:05]} e5 {[%emt 0:00:05]} 33. Qxe5 {[%emt 0:00:02]} Ne6 {[%emt 0:00:01]} 34. Bd2 {[%emt 0:00:14]} Rxa2 {[%emt 0:00:02]} 35. Bc3 {[%emt 0:00:01]} 1-0

[Event "RUS-ch Blitz Women 2018"]
[Site "Sochi"]
[Date "2018.10.07"]
[Round "4"]
[White "Ivanova, Karina"]
[Black "Maltsevskaya, Aleksandra"]
[Result "1-0"]
[ECO "A05"]
[WhiteElo "2124"]
[BlackElo "2290"]
[Annotator "NA"]
[PlyCount "131"]
[EventDate "2018.10.07"]
[EventType "swiss"]
[EventCountry "RUS"]
[SourceTitle "playchess.com"]
[Source "ChessBase"]
[SourceQuality "1"]
[TimeControl "180+2"]

1. Nf3 {[%emt 0:00:00]} Nf6 {[%emt 0:00:00]} 2. g3 {[%emt 0:00:01]} g6 {[%emt 0:00:00]} 3. Bg2 {[%emt 0:00:04]} Bg7 {[%emt 0:00:00]} 4. O-O {[%emt 0:00:03]} O-O {[%emt 0:00:02]} 5. c4 {[%emt 0:00:02]} d6 {[%emt 0:00:02]} 6. Nc3 {[%emt 0:00:05]} e5 {[%emt 0:00:00]} 7. d3 {[%emt 0:00:03]} Ne8 {[%emt 0:00:07]} 8. Rb1 {[%emt 0:00:09]} a5 {[%emt 0:00:02]} 9. a3 {[%emt 0:00:04]} f5 {[%emt 0:00:02]} 10. Qc2 {[%emt 0:00:21]} Nc6 {[%emt 0:00:03]} 11. b4 {[%emt 0:00:02]} axb4 {[%emt 0:00:02]} 12. axb4 {[%emt 0:00:02]} Ne7 {[%emt 0:00:01]} 13. b5 {[%emt 0:00:17]} Rb8 {[%emt 0:00:03]} 14. Nd5 {[%emt 0:00:10]} Nxd5 {[%emt 0:00:54]} 15. cxd5 {[%emt 0:00:03]} Nf6 {[%emt 0:00:02]} 16. Qc4 {[%emt 0:00:41]} b6 {[%emt 0:00:02]} 17. Bg5 {[%emt 0:00:11]} Rf7 {[%emt 0:00:07]} 18. Rfc1 {[%emt 0:00:07]} Bb7 {[%emt 0:00:02]} 19. e4 {[%emt 0:00:12]} h6 {[%emt 0:00:08]} 20. Bd2 {[%emt 0:00:07]} fxe4 {[%emt 0:00:25]} 21. dxe4 {[%emt 0:00:02]} Qd7 {[%emt 0:00:05]} 22. Ne1 {[%emt 0:00:20]} Rbf8 {[%emt 0:00:06]} 23. f3 {[%emt 0:00:04]} g5 {[%emt 0:00:12]} 24. h3 {[%emt 0:00:07]} Nh5 {[%emt 0:00:14]} 25. Kh2 {[%emt 0:00:02]} Bc8 {[%emt 0:00:02]} 26. Qc6 {[%emt 0:00:14]} Qd8 {[%emt 0:00:08]} 27. Qc4 {[%emt 0:00:02]} Qf6 {[%emt 0:00:14]} 28. Qe2 {[%emt 0:00:03]} Qg6 {[%emt 0:00:02]} 29. Rb2 {[%emt 0:00:05]} Bf6 {[%emt 0:00:13]} 30. Rbc2 {[%emt 0:00:02]} Bd8 {[%emt 0:00:01]} 31. Qe3 {[%emt 0:00:04]} Kh7 {[%emt 0:00:04]} 32. Qe2 {[%emt 0:00:02]} Rg8 {[%emt 0:00:06]} 33. Qe3 {[%emt 0:00:02]} Nf6 {[%emt 0:00:14]} 34. Rc4 {[%emt 0:00:03]} Nh5 {[%emt 0:00:04]} 35. R4c2 {[%emt 0:00:01]} Nf4 {[%emt 0:00:01]} 36. gxf4 {[%emt 0:00:06]} gxf4 {[%emt 0:00:01]} 37. Qf2 {[%emt 0:00:01]} Qh5 {[%emt 0:00:01]} 38. Rc3 {[%emt 0:00:03]} Rgg7 {[%emt 0:00:02]} 39. R3c2 {[%emt 0:00:01]} Bh4 {[%emt 0:00:01]} 40. Qf1 {[%emt 0:00:02]} Bg3+ {[%emt 0:00:02]} 41. Kh1 {[%emt 0:00:02]} Qh4 {[%emt 0:00:11]} 42. Bb4 {[%emt 0:00:02]} Bd7 {[%emt 0:00:03]} 43. Rd2 {[%emt 0:00:02]} Bxe1 {[%emt 0:00:07]} 44. Qxe1 {[%emt 0:00:02]} Rg3 {[%emt 0:00:00]} 45. Qf1 {[%emt 0:00:04]} Rfg7 {[%emt 0:00:03]} 46. Rcc2 {[%emt 0:00:02]} Bxh3 {[%emt 0:00:02]} 47. Bxh3 {[%emt 0:00:02]} Rxh3+ {[%emt 0:00:04]} 48. Rh2 {[%emt 0:00:02]} Rxh2+ {[%emt 0:00:02]} 49. Rxh2 {[%emt 0:00:01]} Qe7 {[%emt 0:00:01]} 50. Rg2 {[%emt 0:00:03]} Qh4+ {[%emt 0:00:02]} 51. Rh2 {[%emt 0:00:00]} Qe7 {[%emt 0:00:03]} 52. Rg2 {[%emt 0:00:02]} Rg3 {[%emt 0:00:01]} 53. Rxg3 {[%emt 0:00:02]} fxg3 {[%emt 0:00:01]} 54. Qh3 {[%emt 0:00:01]} Qg5 {[%emt 0:00:05]} 55. Qf5+ {[%emt 0:00:01]} Qxf5 {[%emt 0:00:03]} 56. exf5 Kg7 {[%emt 0:00:00]} 57. Bd2 {[%emt 0:00:03]} Kf6 {[%emt 0:00:02]} 58. Bxh6 {[%emt 0:00:01]} Kxf5 {[%emt 0:00:00]} 59. Be3 {[%emt 0:00:01]} e4 {[%emt 0:00:04]} 60. f4 {[%emt 0:00:01]} Kg6 {[%emt 0:00:06]} 61. Kg2 {[%emt 0:00:02]} Kf6 {[%emt 0:00:01]} 62. Kxg3 {[%emt 0:00:01]} Kf5 {[%emt 0:00:01]} 63. Bd4 {[%emt 0:00:02]} e3 {[%emt 0:00:01]} 64. Kf3 {[%emt 0:00:02]} e2 {[%emt 0:00:02]} 65. Bc3 {[%emt 0:00:01]} c6 {[%emt 0:00:05]} 66. bxc6 {[%emt 0:00:02]} 1-0

[Event "RUS-ch Blitz Women 2018"]
[Site "Sochi"]
[Date "2018.10.07"]
[Round "4"]
[White "Kabanova, Ekaterina"]
[Black "Shuvalova, Polina"]
[Result "0-1"]
[ECO "A15"]
[WhiteElo "2082"]
[BlackElo "2421"]
[Annotator "NA"]
[PlyCount "142"]
[EventDate "2018.10.07"]
[EventType "swiss"]
[EventCountry "RUS"]
[SourceTitle "playchess.com"]
[Source "ChessBase"]
[SourceQuality "1"]
[TimeControl "180+2"]

1. c4 {[%emt 0:00:00]} Nf6 {[%emt 0:00:00]} 2. Nf3 e6 3. e3 {[%emt 0:00:00]} d5 {[%emt 0:00:01]} 4. a3 {[%emt 0:00:01]} Be7 {[%emt 0:00:01]} 5. Qc2 {[%emt 0:00:01]} b6 {[%emt 0:00:04]} 6. Be2 {[%emt 0:00:02]} Bb7 {[%emt 0:00:01]} 7. O-O {[%emt 0:00:01]} O-O {[%emt 0:00:02]} 8. b4 {[%emt 0:00:01]} c5 {[%emt 0:00:12]} 9. b5 {[%emt 0:00:01]} Nbd7 {[%emt 0:00:03]} 10. Bb2 {[%emt 0:00:01]} Rc8 {[%emt 0:00:12]} 11. d3 {[%emt 0:00:01]} h6 {[%emt 0:00:04]} 12. Nbd2 {[%emt 0:00:01]} Re8 {[%emt 0:00:05]} 13. h3 {[%emt 0:00:00]} Bd6 {[%emt 0:00:01]} 14. Rfe1 {[%emt 0:00:01]} e5 {[%emt 0:00:03]} 15. cxd5 {[%emt 0:00:01]} Nxd5 {[%emt 0:00:05]} 16. Nc4 {[%emt 0:00:01]} Bb8 {[%emt 0:00:02]} 17. Rac1 {[%emt 0:00:01]} Qe7 {[%emt 0:00:04]} 18. Ncd2 {[%emt 0:00:03]} N5f6 {[%emt 0:00:10]} 19. e4 {[%emt 0:00:05]} Nf8 {[%emt 0:00:05]} 20. Nc4 {[%emt 0:00:02]} N6d7 {[%emt 0:00:02]} 21. Ne3 {[%emt 0:00:02]} g6 {[%emt 0:00:06]} 22. Nc4 {[%emt 0:00:29]} Rcd8 {[%emt 0:00:04]} 23. Nh2 {[%emt 0:00:04]} Ne6 {[%emt 0:00:03]} 24. Ng4 {[%emt 0:00:05]} h5 {[%emt 0:00:09]} 25. Ngxe5 {[%emt 0:00:08]} Nxe5 {[%emt 0:00:14]} 26. Nxe5 {[%emt 0:00:03]} Nf4 {[%emt 0:00:09]} 27. Nf3 {[%emt 0:00:07]} Ne6 {[%emt 0:00:15]} 28. Qb3 {[%emt 0:00:50]} Nd4 {[%emt 0:00:06]} 29. Bxd4 {[%emt 0:00:02]} cxd4 {[%emt 0:00:01]} 30. Rc4 {[%emt 0:00:05]} Qf6 {[%emt 0:00:18]} 31. Qb2 {[%emt 0:00:09]} Bc8 {[%emt 0:00:34]} 32. Qd2 {[%emt 0:00:04]} Be6 {[%emt 0:00:05]} 33. Rc6 {[%emt 0:00:01]} Qe7 {[%emt 0:00:03]} 34. Qh6 {[%emt 0:00:01]} Qf8 {[%emt 0:00:09]} 35. Qxf8+ {[%emt 0:00:02]} Kxf8 {[%emt 0:00:01]} 36. Rec1 {[%emt 0:00:01]} Bd7 {[%emt 0:00:02]} 37. R6c4 {[%emt 0:00:08]} Bxb5 {[%emt 0:00:05]} 38. Rxd4 {[%emt 0:00:01]} Bd6 {[%emt 0:00:03]} 39. a4 {[%emt 0:00:07]} Ba6 {[%emt 0:00:06]} 40. Rc6 {[%emt 0:00:30]} Ke7 {[%emt 0:00:15]} 41. e5 {[%emt 0:00:00]} Bb8 {[%emt 0:00:01]} 42. Rxd8 {[%emt 0:00:02]} Rxd8 {[%emt 0:00:01]} 43. Rc3 {[%emt 0:00:06]} Bb7 {[%emt 0:00:03]} 44. Ne1 {[%emt 0:00:49]} Bxe5 {[%emt 0:00:01]} 45. Rc1 Bf4 {[%emt 0:00:03]} 46. Rb1 {[%emt 0:00:02]} Rd4 {[%emt 0:00:03]} 47. a5 {[%emt 0:00:01]} Bc7 {[%emt 0:00:03]} 48. axb6 {[%emt 0:00:01]} Bxb6 {[%emt 0:00:01]} 49. h4 {[%emt 0:00:03]} Rxh4 {[%emt 0:00:01]} 50. Nf3 {[%emt 0:00:03]} Rf4 {[%emt 0:00:02]} 51. Rc1 {[%emt 0:00:03]} Ra4 {[%emt 0:00:01]} 52. Kh2 {[%emt 0:00:01]} Ra2 {[%emt 0:00:01]} 53. Re1 {[%emt 0:00:02]} Ba5 {[%emt 0:00:01]} 54. Rb1 {[%emt 0:00:03]} Bd5 {[%emt 0:00:04]} 55. Nd4 {[%emt 0:00:04]} Bb6 {[%emt 0:00:01]} 56. Bf3 {[%emt 0:00:04]} Bxf3 {[%emt 0:00:07]} 57. Nxf3 {[%emt 0:00:02]} Rxf2 {[%emt 0:00:01]} 58. Kg3 {[%emt 0:00:01]} Re2 {[%emt 0:00:01]} 59. Rc1 {[%emt 0:00:01]} Kd6 {[%emt 0:00:02]} 60. Rc8 {[%emt 0:00:01]} Re7 {[%emt 0:00:01]} 61. Ra8 {[%emt 0:00:02]} Bc7 {[%emt 0:00:01]} 62. Kf2 {[%emt 0:00:02]} Kc6 {[%emt 0:00:01]} 63. Rc8 {[%emt 0:00:02]} Kb7 {[%emt 0:00:01]} 64. Rf8 {[%emt 0:00:01]} Bb6+ {[%emt 0:00:01]} 65. Kg3 {[%emt 0:00:01]} Kc6 {[%emt 0:00:01]} 66. d4 {[%emt 0:00:04]} Bc7+ {[%emt 0:00:01]} 67. Kf2 Kd5 {[%emt 0:00:00]} 68. Ra8 {[%emt 0:00:04]} Bb6 69. Kg3 {[%emt 0:00:04]} Kc4 {[%emt 0:00:04]} 70. Rc8+ {[%emt 0:00:01]} Kd5 {[%emt 0:00:01]} 71. Ra8 {[%emt 0:00:06]} Rd7 {[%emt 0:00:03]} 0-1

[Event "RUS-ch Blitz Women 2018"]
[Site "Sochi"]
[Date "2018.10.07"]
[Round "4"]
[White "Shaydullina, Sandugach"]
[Black "Ambartsumova, Karina"]
[Result "0-1"]
[ECO "A05"]
[WhiteElo "2033"]
[BlackElo "2379"]
[Annotator "NA"]
[PlyCount "154"]
[EventDate "2018.10.07"]
[EventType "swiss"]
[EventCountry "RUS"]
[SourceTitle "playchess.com"]
[Source "ChessBase"]
[SourceQuality "1"]
[TimeControl "180+2"]

1. Nf3 {[%emt 0:00:00]} Nf6 {[%emt 0:00:00]} 2. c4 {[%emt 0:00:00]} e6 {[%emt 0:00:06]} 3. b3 {[%emt 0:00:00]} c5 {[%emt 0:00:10]} 4. Bb2 {[%emt 0:00:02]} Be7 {[%emt 0:00:01]} 5. e3 {[%emt 0:00:00]} Nc6 {[%emt 0:00:03]} 6. g3 {[%emt 0:00:02]} b6 {[%emt 0:00:06]} 7. Bg2 {[%emt 0:00:01]} Bb7 {[%emt 0:00:00]} 8. O-O {[%emt 0:00:02]} O-O {[%emt 0:00:12]} 9. Ne5 {[%emt 0:00:06]} Qc7 {[%emt 0:00:04]} 10. f4 {[%emt 0:00:02]} d6 {[%emt 0:00:03]} 11. Ng4 {[%emt 0:00:03]} Nxg4 {[%emt 0:00:42]} 12. Qxg4 {[%emt 0:00:01]} g6 {[%emt 0:00:01]} 13. h4 {[%emt 0:00:04]} f5 {[%emt 0:00:06]} 14. Qh3 {[%emt 0:00:01]} Bf6 {[%emt 0:00:06]} 15. Nc3 {[%emt 0:00:06]} Nd8 {[%emt 0:00:30]} 16. Kf2 {[%emt 0:00:07]} Bxg2 {[%emt 0:00:02]} 17. Qxg2 {[%emt 0:00:04]} Qc6 {[%emt 0:00:07]} 18. Qh2 {[%emt 0:00:04]} d5 {[%emt 0:00:05]} 19. Rh1 {[%emt 0:00:11]} d4 {[%emt 0:00:08]} 20. Na4 {[%emt 0:00:06]} dxe3+ {[%emt 0:00:06]} 21. dxe3 {[%emt 0:00:03]} Bxb2 {[%emt 0:00:10]} 22. Nxb2 {[%emt 0:00:02]} Nf7 {[%emt 0:00:01]} 23. Qg2 {[%emt 0:00:12]} Qxg2+ {[%emt 0:00:19]} 24. Kxg2 {[%emt 0:00:01]} Rfd8 {[%emt 0:00:01]} 25. Rad1 {[%emt 0:00:02]} Kf8 {[%emt 0:00:01]} 26. h5 {[%emt 0:00:02]} Ke7 {[%emt 0:00:05]} 27. hxg6 {[%emt 0:00:05]} hxg6 {[%emt 0:00:00]} 28. Kf3 {[%emt 0:00:19]} Kf6 {[%emt 0:00:03]} 29. g4 {[%emt 0:00:09]} fxg4+ {[%emt 0:00:06]} 30. Kxg4 {[%emt 0:00:01]} e5 {[%emt 0:00:07]} 31. Kf3 {[%emt 0:00:07]} exf4 {[%emt 0:00:01]} 32. exf4 {[%emt 0:00:02]} Rxd1 {[%emt 0:00:15]} 33. Nxd1 {[%emt 0:00:07]} Rd8 {[%emt 0:00:01]} 34. Ne3 {[%emt 0:00:12]} Rd2 {[%emt 0:00:05]} 35. Nd5+ {[%emt 0:00:09]} Kg7 {[%emt 0:00:01]} 36. Rg1 {[%emt 0:00:16]} Rxa2 37. f5 {[%emt 0:00:01]} g5 {[%emt 0:00:01]} 38. Re1 {[%emt 0:00:12]} Rb2 {[%emt 0:00:04]} 39. Re3 {[%emt 0:00:02]} Nh6 {[%emt 0:00:08]} 40. Ke4 {[%emt 0:00:05]} g4 {[%emt 0:00:03]} 41. Ke5 {[%emt 0:00:11]} Kf7 {[%emt 0:00:00]} 42. Kf4 {[%emt 0:00:07]} Rf2+ {[%emt 0:00:02]} 43. Kg5 {[%emt 0:00:05]} Nxf5 {[%emt 0:00:01]} 44. Re5 {[%emt 0:00:02]} Nd4 {[%emt 0:00:03]} 45. Re7+ {[%emt 0:00:03]} Kf8 {[%emt 0:00:01]} 46. Rxa7 {[%emt 0:00:02]} g3 {[%emt 0:00:04]} 47. Ra8+ {[%emt 0:00:04]} Kf7 {[%emt 0:00:01]} 48. Ra7+ {[%emt 0:00:01]} Ke6 {[%emt 0:00:01]} 49. Nf4+ {[%emt 0:00:11]} Kd6 {[%emt 0:00:03]} 50. Rf7 {[%emt 0:00:08]} g2 {[%emt 0:00:03]} 51. Rf6+ {[%emt 0:00:01]} Kd7 {[%emt 0:00:03]} 52. Nh3 {[%emt 0:00:12]} Rxf6 {[%emt 0:00:01]} 53. Kxf6 {[%emt 0:00:01]} Nf3 {[%emt 0:00:01]} 54. Kf5 {[%emt 0:00:04]} g1=Q {[%emt 0:00:02]} 55. Nxg1 {[%emt 0:00:01]} Nxg1 {[%emt 0:00:01]} 56. Ke4 {[%emt 0:00:02]} Ne2 {[%emt 0:00:03]} 57. Kd5 {[%emt 0:00:04]} Nc3+ {[%emt 0:00:02]} 58. Ke5 {[%emt 0:00:02]} Kc6 {[%emt 0:00:00]} 59. Ke6 {[%emt 0:00:01]} Ne2 {[%emt 0:00:02]} 60. Ke5 {[%emt 0:00:02]} Nc1 {[%emt 0:00:01]} 61. b4 {[%emt 0:00:04]} cxb4 {[%emt 0:00:02]} 62. Kd4 {[%emt 0:00:00]} b3 {[%emt 0:00:02]} 63. Kc3 {[%emt 0:00:01]} Kc5 {[%emt 0:00:00]} 64. Kb2 {[%emt 0:00:01]} Nd3+ {[%emt 0:00:05]} 65. Kxb3 {[%emt 0:00:02]} Ne5 {[%emt 0:00:01]} 66. Ka4 {[%emt 0:00:03]} Nxc4 {[%emt 0:00:02]} 67. Kb3 {[%emt 0:00:01]} b5 {[%emt 0:00:01]} 68. Kc3 {[%emt 0:00:01]} b4+ {[%emt 0:00:01]} 69. Kb3 {[%emt 0:00:00]} Nb6 {[%emt 0:00:02]} 70. Kb2 {[%emt 0:00:02]} Kc4 {[%emt 0:00:01]} 71. Kc2 {[%emt 0:00:01]} b3+ {[%emt 0:00:01]} 72. Kb2 {[%emt 0:00:01]} Kb4 {[%emt 0:00:01]} 73. Kb1 {[%emt 0:00:01]} Ka3 {[%emt 0:00:02]} 74. Ka1 {[%emt 0:00:01]} Nd5 {[%emt 0:00:02]} 75. Kb1 {[%emt 0:00:03]} b2 {[%emt 0:00:01]} 76. Kc2 {[%emt 0:00:02]} Ka2 {[%emt 0:00:01]} 77. Kd3 {[%emt 0:00:02]} b1=Q+ 0-1